bitfinex/quotes_BTCUSD_20250105
["timestamp","ask_amount","ask_price","bid_price","bid_amount"]
[1736075820247,8.54e-05,97797.0,97796.0,0.01839409]
[1736075820880,8.54e-05,97797.0,97796.0,0.01539409]
[1736075821098,8.54e-05,97797.0,97796.0,0.02039409]
[1736075827341,8.54e-05,97797.0,97796.0,0.1024317]
[1736075827916,8.54e-05,97797.0,97796.0,0.13430165]
[1736075828500,8.54e-05,97797.0,97796.0,0.1353241]
[1736075829682,8.54e-05,97797.0,97796.0,0.12893001]
[1736075829880,8.54e-05,97797.0,97796.0,0.12910081]
[1736075830243,8.54e-05,97797.0,97796.0,0.23308713]
[1736075830447,8.54e-05,97797.0,97796.0,0.20019473]
[1736075830652,8.54e-05,97797.0,97796.0,0.20121713]
[1736075830891,8.54e-05,97797.0,97796.0,0.1510457]
[1736075831198,8.54e-05,97797.0,97796.0,0.20121713]
[1736075832215,8.54e-05,97797.0,97796.0,0.37017962]
[1736075832348,8.54e-05,97797.0,97796.0,0.36915722]
[1736075832555,8.54e-05,97797.0,97796.0,0.28711961]
[1736075832926,8.54e-05,97797.0,97796.0,0.36915722]
[1736075833086,8.54e-05,97797.0,97796.0,0.57027368]
[1736075833282,8.54e-05,97797.0,97796.0,0.48823607]
[1736075833487,8.54e-05,97797.0,97796.0,0.57027368]
[1736075834099,8.54e-05,97797.0,97796.0,0.48823607]
[1736075834303,8.54e-05,97797.0,97796.0,0.57027368]
[1736075835432,8.54e-05,97797.0,97796.0,0.53840876]
[1736075835642,8.54e-05,97797.0,97796.0,0.5702715]
[1736075836609,8.54e-05,97797.0,97796.0,0.57026846]
[1736075839821,8.54e-05,97797.0,97796.0,1.07026846]
[1736075840872,8.54e-05,97797.0,97796.0,1.131676]
[1736075841093,8.54e-05,97797.0,97796.0,1.211376]
[1736075841295,8.54e-05,97797.0,97796.0,1.51881979]
[1736075841698,0.0004,97799.0,97798.0,0.22314515]
[1736075841922,0.0004,97799.0,97798.0,0.51041691]
[1736075842543,0.0004,97799.0,97798.0,0.51725691]
[1736075842715,0.0004,97799.0,97798.0,0.71585691]
[1736075843523,0.0004,97799.0,97798.0,0.6428193]
[1736075843941,0.0004,97799.0,97798.0,0.6338193]
[1736075844203,0.0004,97799.0,97798.0,1.45673059]
[1736075844979,0.0004,97799.0,97798.0,1.44773059]
[1736075845116,0.0004,97799.0,97798.0,1.45673059]
[1736075845348,0.0004,97799.0,97798.0,0.98103333]
[1736075845865,0.0004,97799.0,97798.0,0.99003333]
[1736075846071,0.0004,97799.0,97798.0,0.98103333]
[1736075846433,0.0004,97799.0,97798.0,0.99003333]
[1736075848884,0.0004,97799.0,97798.0,1.09773333]
[1736075849315,0.0004,97799.0,97798.0,1.17977094]
[1736075850227,0.00014362,97799.0,97798.0,1.17977094]
[1736075850421,0.00014362,97799.0,97798.0,1.5848284]
[1736075852318,0.00014362,97799.0,97798.0,1.17977094]
[1736075853268,0.00022902,97799.0,97798.0,1.17977094]
[1736075853902,2.102e-05,97800.0,97799.0,0.40114515]
[1736075854076,2.102e-05,97800.0,97799.0,0.45495356]
[1736075854238,2.102e-05,97800.0,97799.0,0.53699117]
[1736075855247,2.102e-05,97800.0,97799.0,1.08770223]
[1736075855465,2.102e-05,97800.0,97799.0,1.42591626]
[1736075855876,2.102e-05,97800.0,97799.0,2.93629688]
[1736075856249,2.102e-05,97800.0,97799.0,2.94529688]
[1736075857080,8.54e-05,97831.0,97817.0,0.1]
[1736075857273,8.54e-05,97831.0,97817.0,0.20500848]
[1736075857482,0.05584736,97818.0,97817.0,0.20500848]
[1736075857678,0.05,97818.0,97817.0,0.28704609]
[1736075858001,0.05,97818.0,97817.0,0.20398632]
[1736075858155,8.54e-05,97831.0,97817.0,0.20500848]
[1736075858362,0.00584418,97826.0,97818.0,0.11184842]
[1736075858585,8.54e-05,97831.0,97818.0,0.11184842]
[1736075858792,0.00584418,97826.0,97818.0,0.11184842]
[1736075859001,8.54e-05,97831.0,97818.0,0.11184842]
[1736075859240,8.54e-05,97831.0,97819.0,0.00684]
[1736075859578,8.54e-05,97831.0,97820.0,0.10500843]
[1736075859954,8.54e-05,97831.0,97824.0,0.13701162]
[1736075860138,8.54e-05,97831.0,97825.0,0.10500843]
[1736075860948,8.54e-05,97831.0,97826.0,0.09134347]
[1736075861261,8.54e-05,97831.0,97826.0,0.1963519]
[1736075861716,8.54e-05,97831.0,97826.0,0.27838951]
[1736075861912,8.54e-05,97831.0,97826.0,0.19532979]
[1736075862115,8.54e-05,97831.0,97826.0,0.1963519]
[1736075863082,8.54e-05,97831.0,97826.0,0.2053519]
[1736075864330,8.54e-05,97831.0,97826.0,0.2103519]
[1736075864476,8.54e-05,97831.0,97826.0,0.20932979]
[1736075866539,8.54e-05,97831.0,97826.0,0.2913674]
[1736075866821,8.54e-05,97831.0,97826.0,0.20932979]
[1736075868286,8.54e-05,97831.0,97826.0,0.11798632]
[1736075868489,8.54e-05,97831.0,97826.0,0.11900843]
[1736075869094,8.54e-05,97831.0,97826.0,0.20104604]
[1736075869311,8.54e-05,97831.0,97826.0,0.2103519]
[1736075869497,8.54e-05,97831.0,97826.0,0.20932979]
[1736075870859,8.54e-05,97831.0,97826.0,0.2913674]
[1736075871041,8.54e-05,97831.0,97826.0,0.20932979]
[1736075872243,8.54e-05,97831.0,97826.0,0.2913674]
[1736075872583,8.54e-05,97831.0,97826.0,0.20932979]
[1736075873065,8.54e-05,97831.0,97826.0,0.11798632]
[1736075873367,8.54e-05,97831.0,97826.0,0.11900839]
[1736075874885,8.54e-05,97831.0,97826.0,0.201046]
[1736075875115,8.54e-05,97831.0,97826.0,0.11900839]
[1736075875521,8.54e-05,97831.0,97826.0,0.15766179]
[1736075876153,8.54e-05,97831.0,97826.0,0.2396994]
[1736075876466,8.54e-05,97831.0,97826.0,0.23867733]
[1736075876668,8.54e-05,97831.0,97826.0,1.73867733]
[1736075877054,8.54e-05,97831.0,97826.0,0.23867733]
[1736075877261,8.54e-05,97831.0,97826.0,0.80434459]
[1736075877562,8.54e-05,97831.0,97830.0,0.08203761]
[1736075877775,8.54e-05,97831.0,97830.0,0.21885934]
[1736075877980,8.54e-05,97831.0,97830.0,0.21783733]
[1736075878366,8.54e-05,97831.0,97830.0,0.37924487]
[1736075879150,8.54e-05,97831.0,97830.0,0.33824487]
[1736075879391,8.54e-05,97831.0,97830.0,0.67555942]
[1736075879752,8.54e-05,97831.0,97830.0,0.68055942]
[1736075881086,8.54e-05,97831.0,97830.0,0.67555942]
[1736075881408,8.54e-05,97831.0,97830.0,0.68355942]
[1736075882061,8.54e-05,97831.0,97830.0,0.67455942]
[1736075882427,8.54e-05,97831.0,97830.0,0.68355942]
[1736075882924,8.54e-05,97831.0,97830.0,0.67555942]
[1736075883393,8.54e-05,97831.0,97830.0,0.65152181]
[1736075883628,8.54e-05,97831.0,97830.0,0.98925942]
[1736075883837,8.54e-05,97831.0,97830.0,1.06455942]
[1736075884043,8.54e-05,97831.0,97830.0,1.03252181]
[1736075884676,8.54e-05,97831.0,97830.0,0.74695427]
[1736075884879,8.54e-05,97831.0,97830.0,0.49011427]
[1736075885648,8.54e-05,97831.0,97830.0,0.48111427]
[1736075885877,0.0754,97838.0,97830.0,0.47995427]
[1736075886055,0.07522878,97838.0,97831.0,0.13682177]
[1736075886256,0.07522878,97838.0,97832.0,0.0318134]
[1736075886473,0.07522878,97838.0,97833.0,0.10398632]
[1736075886685,0.07522878,97838.0,97834.0,0.0318134]
[1736075887052,0.07522878,97838.0,97830.0,0.35531455]
[1736075887257,0.07522878,97838.0,97831.0,0.13577502]
[1736075887504,0.07522878,97838.0,97835.0,0.33731455]
[1736075888729,0.07522878,97838.0,97836.0,0.33731455]
[1736075890067,0.07522878,97838.0,97837.0,0.33731455]
[1736075890480,0.08019931,97838.0,97837.0,0.33731455]
[1736075891513,0.08019931,97838.0,97837.0,0.83731455]
[1736075891901,0.07522878,97838.0,97837.0,0.83731455]
[1736075892461,0.07522878,97838.0,97837.0,0.84531455]
[1736075893123,0.07522878,97838.0,97837.0,0.83731455]
[1736075893367,0.07522878,97838.0,97837.0,0.85331455]
[1736075894019,0.18178363,97838.0,97837.0,0.84431455]
[1736075894236,0.23443449,97838.0,97837.0,0.84431455]
[1736075894416,0.23443449,97838.0,97837.0,0.84631455]
[1736075895268,0.23443449,97838.0,97837.0,0.509]
[1736075896092,0.23443449,97838.0,97837.0,0.5]
[1736075896266,0.23443449,97838.0,97837.0,0.507]
[1736075896473,0.23443449,97838.0,97837.0,0.516]
[1736075896681,0.23443449,97838.0,97837.0,0.507]
[1736075896877,0.23443449,97838.0,97837.0,0.5]
[1736075897085,0.23443449,97838.0,97837.0,0.508]
[1736075897260,0.23443449,97838.0,97837.0,0.511]
[1736075897657,0.23443449,97838.0,97837.0,0.508]
[1736075898076,0.23443449,97838.0,97837.0,0.512]
[1736075898665,0.23443449,97838.0,97837.0,0.504]
[1736075899057,0.23443449,97838.0,97837.0,0.513]
[1736075899395,0.23443449,97838.0,97837.0,0.5]
[1736075899553,0.23443449,97838.0,97837.0,0.508]
[1736075899753,0.23443449,97838.0,97837.0,0.5]
[1736075900105,0.23443449,97838.0,97837.0,0.509]
[1736075900535,0.23443449,97838.0,97837.0,0.503]
[1736075901178,0.23443449,97838.0,97837.0,0.5]
[1736075901392,0.23443449,97838.0,97837.0,0.504]
[1736075901954,0.23443449,97838.0,97837.0,0.512]
[1736075902153,0.23443449,97838.0,97837.0,0.504]
[1736075902377,0.23443449,97838.0,97837.0,0.513]
[1736075902587,0.23443449,97838.0,97837.0,0.5131708]
[1736075902745,0.23443449,97838.0,97837.0,0.5001708]
[1736075903097,0.23443449,97838.0,97837.0,0.5111708]
[1736075903713,0.23443449,97838.0,97837.0,0.5171708]
[1736075904067,0.23443449,97838.0,97837.0,0.5211708]
[1736075904669,0.23443449,97838.0,97837.0,0.5171708]
[1736075904897,0.23443449,97838.0,97837.0,0.5001708]
[1736075905126,0.23443449,97838.0,97837.0,0.5081708]
[1736075906701,0.23443449,97838.0,97837.0,0.5111708]
[1736075911860,0.23443449,97838.0,97837.0,0.0111708]
[1736075913705,0.1664721,97838.0,97837.0,0.0111708]
[1736075913904,0.23443449,97838.0,97837.0,0.0111708]
[1736075915712,0.23451989,97838.0,97837.0,0.0111708]
[1736075921199,0.36150621,97838.0,97837.0,0.0111708]
[1736075921404,0.36150621,97838.0,97837.0,0.0031708]
[1736075921855,0.36150621,97838.0,97837.0,0.0111708]
[1736075922211,0.36150621,97838.0,97837.0,0.0031708]
[1736075922399,0.36150621,97838.0,97837.0,0.0091708]
[1736075922606,0.36150621,97838.0,97837.0,0.0061708]
[1736075922805,0.36150621,97838.0,97837.0,0.0091708]
[1736075923451,0.36150621,97838.0,97837.0,0.0061708]
[1736075923767,0.36150621,97838.0,97837.0,0.0081708]
[1736075923945,0.87255621,97838.0,97837.0,0.0021708]
[1736075924373,0.87255621,97838.0,97837.0,0.0091708]
[1736075924773,0.88282513,97838.0,97837.0,0.0091708]
[1736075925005,0.88282513,97838.0,97837.0,0.0021708]
[1736075925770,0.88282513,97838.0,97837.0,0.0041708]
[1736075926782,0.88282513,97838.0,97837.0,0.0061708]
[1736075927578,0.88282513,97838.0,97837.0,0.0041708]
[1736075927780,0.88282513,97838.0,97837.0,0.0001708]
[1736075928152,0.88282513,97838.0,97837.0,0.0041708]
[1736075928348,0.88282513,97838.0,97837.0,0.0001708]
[1736075928750,0.88282513,97838.0,97837.0,0.0031708]
[1736075928961,0.88282513,97838.0,97837.0,0.0041708]
[1736075929532,0.88282513,97838.0,97837.0,0.0001708]
[1736075929973,0.88282513,97838.0,97837.0,0.0011708]
[1736075930899,0.88282513,97838.0,97837.0,0.0051708]
[1736075931278,0.88282513,97838.0,97837.0,0.0011708]
[1736075931661,0.88282513,97838.0,97837.0,0.0041708]
[1736075932629,1.03282513,97838.0,97837.0,0.0041708]
[1736075932996,1.03282513,97838.0,97837.0,0.0031708]
[1736075933414,1.03282513,97838.0,97837.0,0.0041708]
[1736075933837,1.03282513,97838.0,97837.0,0.0031708]
[1736075934607,1.03282513,97838.0,97837.0,0.0001708]
[1736075934805,1.03282513,97838.0,97837.0,0.0031708]
[1736075935264,1.03282513,97838.0,97837.0,0.0001708]
[1736075935466,1.03282513,97838.0,97837.0,0.0021708]
[1736075937119,1.02787427,97838.0,97837.0,0.0021708]
[1736075942747,1.02787427,97838.0,97837.0,0.0001708]
[1736075944111,1.03475427,97838.0,97837.0,0.0001708]
[1736075944267,1.03475427,97838.0,97837.0,0.0021708]
[1736075944469,1.03475427,97838.0,97837.0,0.0001708]
[1736075945415,1.03575427,97838.0,97837.0,0.0001708]
[1736075946034,1.03675427,97838.0,97837.0,0.0001708]
[1736075946618,1.03575427,97838.0,97837.0,0.0001708]
[1736075947231,0.98705427,97838.0,97837.0,0.0001708]
[1736075947905,0.98017427,97838.0,97837.0,0.0001708]
[1736075948114,0.90494549,97838.0,97837.0,0.0001708]
[1736075948633,0.90594549,97838.0,97837.0,0.0001708]
[1736075949247,0.79269025,97838.0,97837.0,0.0001708]
[1736075949477,0.55172786,97838.0,97837.0,0.0001708]
[1736075949763,0.55072786,97838.0,97837.0,0.0001708]
[1736075950323,0.61769025,97838.0,97837.0,0.0001708]
[1736075950724,0.61769025,97838.0,97837.0,0.0011708]
[1736075951318,0.61769025,97838.0,97837.0,0.0041708]
[1736075951825,0.61769025,97838.0,97837.0,0.0051708]
[1736075952232,0.61769025,97838.0,97837.0,0.0001708]
[1736075953575,0.61769025,97838.0,97837.0,0.0031708]
[1736075953759,0.61769025,97838.0,97837.0,0.0001708]
[1736075954073,0.61769025,97838.0,97837.0,0.0011708]
[1736075954601,0.61769025,97838.0,97837.0,0.0001708]
[1736075954863,0.61769025,97838.0,97837.0,0.0031708]
[1736075955266,0.61769025,97838.0,97837.0,0.0001708]
[1736075955444,0.54972786,97838.0,97837.0,0.0001708]
[1736075955849,0.54972786,97838.0,97837.0,0.0011708]
[1736075956651,0.54972786,97838.0,97837.0,0.0021708]
[1736075957048,0.54972786,97838.0,97837.0,0.0001708]
[1736075957262,0.54972786,97838.0,97837.0,0.0031708]
[1736075957875,0.5111354,97838.0,97837.0,0.03620841]
[1736075959017,0.57909779,97838.0,97837.0,0.0041708]
[1736075960972,0.5111354,97838.0,97837.0,0.26339473]
[1736075962469,0.5111354,97838.0,97837.0,0.83014506]
[1736075963093,0.5111354,97838.0,97837.0,0.82714506]
[1736075963416,0.5111354,97838.0,97837.0,0.83214506]
[1736075963621,0.5111354,97838.0,97837.0,0.82614506]
[1736075963835,0.5111354,97838.0,97837.0,0.59720518]
[1736075964047,0.5111354,97838.0,97837.0,0.60320518]
[1736075964250,0.5111354,97838.0,97837.0,0.59820518]
[1736075964424,0.5111354,97838.0,97837.0,0.60720518]
[1736075964862,0.5111354,97838.0,97837.0,0.59720518]
[1736075965068,0.5111354,97838.0,97837.0,0.60220518]
[1736075965536,0.5111354,97838.0,97837.0,0.61240647]
[1736075965952,0.5111354,97838.0,97837.0,0.79533044]
[1736075966156,0.5111354,97838.0,97837.0,0.80433044]
[1736075966981,0.5111354,97838.0,97837.0,0.76209154]
[1736075967180,0.5111354,97838.0,97837.0,0.65810522]
[1736075967381,0.5111354,97838.0,97837.0,0.47518125]
[1736075968021,0.5111354,97838.0,97837.0,0.61120518]
[1736075968543,0.5111354,97838.0,97837.0,0.24135712]
[1736075970090,0.5111354,97838.0,97837.0,0.33274653]
[1736075972637,0.5111354,97838.0,97837.0,0.24135712]
[1736075972845,0.5111354,97838.0,97837.0,0.19385712]
[1736075973669,0.5111354,97838.0,97837.0,0.18885712]
[1736075974051,0.5111354,97838.0,97837.0,0.18485712]
[1736075974378,0.5111354,97838.0,97837.0,0.19385712]
[1736075974747,0.5111354,97838.0,97837.0,0.18885712]
[1736075975160,0.5111354,97838.0,97837.0,0.19385712]
[1736075975772,0.5111354,97838.0,97837.0,0.18485712]
[1736075976126,0.5111354,97838.0,97837.0,0.19385712]
[1736075977916,0.5111354,97838.0,97837.0,0.0898708]
[1736075978121,0.5111354,97838.0,97837.0,0.0848708]
[1736075978321,0.5111354,97838.0,97837.0,0.0898708]
[1736075978827,0.5111354,97838.0,97837.0,0.0808708]
[1736075979230,0.5111354,97838.0,97837.0,0.0898708]
[1736075980012,0.5111354,97838.0,97837.0,0.0808708]
[1736075980197,0.5111354,97838.0,97837.0,0.0758708]
[1736075980562,0.5111354,97838.0,97837.0,0.0898708]
[1736075980704,0.5111354,97838.0,97837.0,0.0808708]
[1736075981043,0.5111354,97838.0,97837.0,0.0848708]
[1736075981268,0.5111354,97838.0,97837.0,0.0898708]
[1736075981816,0.5111354,97838.0,97837.0,0.0848708]
[1736075982059,0.5111354,97838.0,97837.0,0.0898708]
[1736075982517,0.5111354,97838.0,97837.0,0.12190841]
[1736075982938,0.5111354,97838.0,97837.0,0.11290841]
[1736075983150,0.5111354,97838.0,97837.0,0.12190841]
[1736075983515,0.5111354,97838.0,97837.0,0.10790841]
[1736075983717,0.5111354,97838.0,97837.0,0.12190841]
[1736075983887,0.5111354,97838.0,97837.0,0.21329782]
[1736075984106,0.5111354,97838.0,97837.0,0.17226021]
[1736075984317,0.5111354,97838.0,97837.0,0.17626021]
[1736075984525,0.5111354,97838.0,97837.0,0.68126021]
[1736075984877,0.5111354,97838.0,97837.0,0.5898708]
[1736075985599,0.5111354,97838.0,97837.0,0.5808708]
[1736075985802,0.51108168,97838.0,97837.0,0.5808708]
[1736075986005,0.51108168,97838.0,97837.0,0.5898708]
[1736075986205,0.51108168,97838.0,97837.0,0.61290841]
[1736075986752,0.51108168,97838.0,97837.0,0.62190841]
[1736075986902,0.51108168,97838.0,97837.0,0.60790841]
[1736075987107,0.51108168,97838.0,97837.0,0.70829782]
[1736075987307,0.51108168,97838.0,97837.0,0.71329782]
[1736075987525,0.51108168,97838.0,97837.0,0.70429782]
[1736075987826,0.51108168,97838.0,97837.0,0.69929782]
[1736075988089,0.51108168,97838.0,97837.0,0.70429782]
[1736075988292,0.51108168,97838.0,97837.0,0.61290841]
[1736075988870,0.51108168,97838.0,97837.0,0.62190841]
[1736075989265,0.51108168,97838.0,97837.0,0.61290841]
[1736075989471,0.51108168,97838.0,97837.0,0.62190841]
[1736075989682,0.51108168,97838.0,97837.0,0.61690841]
[1736075989817,0.51108168,97838.0,97837.0,0.71189473]
[1736075990031,0.51108168,97838.0,97837.0,0.72589473]
[1736075990241,0.51108168,97838.0,97837.0,0.75769378]
[1736075990453,0.51108168,97838.0,97837.0,0.89482025]
[1736075991063,0.51108168,97838.0,97837.0,0.88982025]
[1736075991488,0.51108168,97838.0,97837.0,1.09517581]
[1736075991866,0.00040169,97838.0,97837.0,1.09517581]
[1736075992039,0.00040169,97838.0,97837.0,1.05437676]
[1736075992234,0.00040169,97838.0,97837.0,1.06337676]
[1736075992555,0.00040169,97838.0,97837.0,1.05437676]
[1736075992852,0.00040169,97838.0,97837.0,1.06337676]
[1736075993059,0.00040169,97838.0,97837.0,1.05837676]
[1736075993283,0.00040169,97838.0,97837.0,1.06337676]
[1736075994507,0.00040169,97838.0,97837.0,0.69385712]
[1736075994705,0.00040169,97838.0,97837.0,0.72589473]
[1736075995681,0.00040169,97838.0,97837.0,0.71689473]
[1736075995907,0.00048709,97838.0,97837.0,0.72589473]
[1736075996209,0.00048709,97838.0,97837.0,0.85808134]
[1736075996432,0.00048709,97838.0,97837.0,0.86308134]
[1736075996956,0.00048709,97838.0,97837.0,0.85408134]
[1736075997141,0.00048709,97838.0,97837.0,0.86308134]
[1736075997686,0.00048709,97838.0,97837.0,0.85808134]
[1736075998062,0.00048709,97838.0,97837.0,0.86308134]
[1736075998270,0.00048709,97838.0,97837.0,0.85408134]
[1736075998677,0.00048709,97838.0,97837.0,1.06364257]
[1736075999251,0.00048709,97838.0,97837.0,1.05464257]
[1736075999489,0.00048709,97838.0,97837.0,1.02260496]
[1736075999697,0.00048709,97838.0,97837.0,1.01760496]
[1736075999918,0.00048709,97838.0,97837.0,1.03160496]
[1736076000112,0.00048709,97838.0,97837.0,1.02260496]
[1736076000317,0.00048709,97838.0,97837.0,1.03160496]
[1736076000548,0.00048709,97838.0,97837.0,1.1419125]
[1736076000948,0.00048709,97838.0,97837.0,1.32477488]
[1736076001930,0.00048709,97838.0,97837.0,1.1737205]
[1736076002130,0.00048709,97838.0,97837.0,1.07033296]
[1736076003156,0.00048709,97838.0,97837.0,1.34482874]
[1736076005288,0.00048709,97838.0,97837.0,1.26912874]
[1736076006248,0.00048709,97838.0,97837.0,1.26220874]
[1736076006998,0.00048709,97838.0,97837.0,1.15822242]
[1736076007225,0.00048709,97838.0,97837.0,1.12641442]
[1736076008171,0.00048709,97838.0,97837.0,1.08098684]
[1736076009156,0.00048709,97838.0,97837.0,0.60581801]
[1736076011602,0.00048709,97838.0,97837.0,0.5141708]
[1736076011603,0.11467955,97838.0,97837.0,0.5141708]
[1736076012663,0.11467955,97838.0,97837.0,0.5001708]
[1736076013051,0.11467955,97838.0,97837.0,0.5141708]
[1736076013208,0.11467955,97838.0,97837.0,0.5051708]
[1736076013430,0.11467955,97838.0,97837.0,0.5001708]
[1736076013615,0.11467955,97838.0,97837.0,0.5091708]
[1736076013814,0.11467955,97838.0,97837.0,0.5051708]
[1736076014416,0.11467955,97838.0,97837.0,0.5001708]
[1736076015410,0.11467955,97838.0,97837.0,0.5051708]
[1736076015895,0.11467955,97838.0,97837.0,0.5121708]
[1736076016314,0.11467955,97838.0,97837.0,0.5001708]
[1736076016724,0.11467955,97838.0,97837.0,0.5071708]
[1736076016926,0.11467955,97838.0,97837.0,0.5021708]
[1736076017100,0.11467955,97838.0,97837.0,0.5001708]
[1736076017305,0.11467955,97838.0,97837.0,0.5061708]
[1736076017712,0.20564194,97838.0,97837.0,0.5081708]
[1736076018571,0.20564194,97838.0,97837.0,0.5021708]
[1736076018972,0.20564194,97838.0,97837.0,0.5071708]
[1736076019184,0.20564194,97838.0,97837.0,0.5001708]
[1736076019390,0.20564194,97838.0,97837.0,0.5021708]
[1736076019605,0.20564194,97838.0,97837.0,0.5061708]
[1736076019978,0.20564194,97838.0,97837.0,0.5041708]
[1736076020381,0.20564194,97838.0,97837.0,0.5011708]
[1736076020583,0.20564194,97838.0,97837.0,0.5061708]
[1736076021325,0.13004194,97838.0,97837.0,0.5061708]
[1736076021526,0.20564194,97838.0,97837.0,0.5061708]
[1736076021955,0.30962826,97838.0,97837.0,0.5011708]
[1736076022164,0.35482826,97838.0,97837.0,0.5051708]
[1736076022954,0.35482826,97838.0,97837.0,0.0051708]
[1736076031750,0.36124304,97838.0,97837.0,0.0051708]
[1736076036294,0.36124304,97838.0,97837.0,0.0041708]
[1736076036502,0.36124304,97838.0,97837.0,0.0011708]
[1736076038305,0.36124304,97838.0,97837.0,0.0041708]
[1736076044099,0.35974304,97838.0,97837.0,0.0041708]
[1736076047377,0.87079304,97838.0,97837.0,0.0041708]
[1736076054688,0.87087844,97838.0,97837.0,0.0041708]
[1736076058385,0.8708247,97838.0,97837.0,0.0041708]
[1736076062625,0.8708247,97838.0,97837.0,0.0001708]
[1736076062825,0.8708247,97838.0,97837.0,0.0031708]
[1736076063057,0.8708247,97838.0,97837.0,0.0041708]
[1736076064277,0.8708247,97838.0,97837.0,0.0031708]
[1736076064614,0.8708247,97838.0,97837.0,0.0021708]
[1736076065066,0.8708247,97838.0,97837.0,0.0051708]
[1736076065427,0.8708247,97838.0,97837.0,0.0011708]
[1736076065629,0.8708247,97838.0,97837.0,0.0031708]
[1736076066035,0.8708247,97838.0,97837.0,0.0021708]
[1736076066504,0.8708247,97838.0,97837.0,0.0001708]
[1736076068036,0.8708247,97838.0,97837.0,0.0021708]
[1736076068726,0.8708247,97838.0,97837.0,0.0041708]
[1736076069122,0.8708247,97838.0,97837.0,0.0001708]
[1736076069291,0.8708247,97838.0,97837.0,0.0021708]
[1736076071756,0.8256247,97838.0,97837.0,0.0021708]
[1736076071957,0.8256247,97838.0,97837.0,0.0001708]
[1736076072304,0.8256247,97838.0,97837.0,0.0011708]
[1736076072509,0.8256247,97838.0,97837.0,0.0001708]
[1736076072831,0.8266247,97838.0,97837.0,0.0001708]
[1736076075249,0.8256247,97838.0,97837.0,0.0001708]
[1736076077877,0.8266247,97838.0,97837.0,0.0001708]
[1736076078238,0.8256247,97838.0,97837.0,0.0001708]
[1736076078626,0.8266247,97838.0,97837.0,0.0001708]
[1736076079105,0.8256247,97838.0,97837.0,0.0001708]
[1736076079484,0.8256247,97838.0,97837.0,0.0021708]
[1736076081810,0.8256247,97838.0,97837.0,0.0001708]
[1736076082216,0.8256247,97838.0,97837.0,0.0021708]
[1736076082819,0.8256247,97838.0,97837.0,0.0001708]
[1736076083398,0.8256247,97838.0,97837.0,0.0021708]
[1736076083579,0.8252247,97838.0,97837.0,0.0021708]
[1736076084943,0.8252247,97838.0,97837.0,0.0001708]
[1736076085369,0.8252247,97838.0,97837.0,0.0021708]
[1736076085575,0.8252247,97838.0,97837.0,0.0001708]
[1736076086068,0.8252247,97838.0,97837.0,0.0021708]
[1736076086264,0.8252247,97838.0,97837.0,0.0001708]
[1736076086465,0.8252247,97838.0,97837.0,0.0021708]
[1736076086909,0.8252247,97838.0,97837.0,0.0001708]
[1736076088808,0.8252247,97838.0,97837.0,0.0021708]
[1736076089006,0.8252247,97838.0,97837.0,0.0001708]
[1736076089485,0.8252247,97838.0,97837.0,0.0021708]
[1736076090801,0.82458102,97838.0,97837.0,0.0001708]
[1736076092320,0.82458102,97838.0,97837.0,0.0011708]
[1736076092495,0.82458102,97838.0,97837.0,0.0001708]
[1736076092696,0.82458102,97838.0,97837.0,0.0011708]
[1736076092902,0.82458102,97838.0,97837.0,0.0001708]
[1736076093304,0.82458102,97838.0,97837.0,0.0011708]
[1736076093715,0.82458102,97838.0,97837.0,0.0001708]
[1736076094035,0.82458102,97838.0,97837.0,0.0011708]
[1736076095381,0.82458102,97838.0,97837.0,0.0001708]
[1736076095689,0.82458102,97838.0,97837.0,0.0011708]
[1736076096091,0.82458102,97838.0,97837.0,0.0001708]
[1736076098611,0.82458102,97838.0,97837.0,0.0011708]
[1736076099460,0.82458102,97838.0,97837.0,0.0001708]
[1736076099660,0.74898102,97838.0,97837.0,0.0011708]
[1736076101328,0.74898102,97838.0,97837.0,0.0001708]
[1736076101861,0.74898102,97838.0,97837.0,0.0011708]
[1736076102143,0.6449947,97838.0,97837.0,0.0011708]
[1736076102347,0.6449947,97838.0,97837.0,0.0021708]
[1736076102507,0.60786889,97838.0,97837.0,0.0001708]
[1736076102702,0.6449947,97838.0,97837.0,0.0001708]
[1736076102907,0.6449947,97838.0,97837.0,0.0011708]
[1736076103279,0.60786889,97838.0,97837.0,0.0001708]
[1736076103681,0.6449947,97838.0,97837.0,0.0001708]
[1736076104575,0.6449947,97838.0,97837.0,0.0011708]
[1736076104779,0.6449947,97838.0,97837.0,0.0001708]
[1736076105806,0.6449947,97838.0,97837.0,0.0011708]
[1736076107704,0.6449947,97838.0,97837.0,0.0001708]
[1736076108516,0.6449947,97838.0,97837.0,0.0011708]
[1736076109323,0.6449947,97838.0,97837.0,0.0001708]
[1736076110452,0.6449947,97838.0,97837.0,0.0011708]
[1736076112149,0.6449947,97838.0,97837.0,0.0001708]
[1736076112344,0.6449947,97838.0,97837.0,0.0011708]
[1736076114181,0.6449947,97838.0,97837.0,0.0001708]
[1736076114579,0.6449947,97838.0,97837.0,0.0011708]
[1736076120157,0.57703231,97838.0,97837.0,0.03320841]
[1736076120365,0.6449947,97838.0,97837.0,0.0011708]
[1736076120708,0.58486889,97838.0,97837.0,0.0011708]
[1736076120988,0.6219947,97838.0,97837.0,0.0011708]
[1736076123546,0.6219947,97838.0,97837.0,0.0001708]
[1736076123747,0.6219947,97838.0,97837.0,0.0011708]
[1736076124672,0.6219947,97838.0,97837.0,0.0001708]
[1736076125070,0.6219947,97838.0,97837.0,0.0011708]
[1736076125282,0.6219947,97838.0,97837.0,0.0001708]
[1736076125708,0.6219947,97838.0,97837.0,0.0011708]
[1736076127429,0.6219947,97838.0,97837.0,0.0001708]
[1736076127855,0.6219947,97838.0,97837.0,0.0011708]
[1736076128023,0.6219947,97838.0,97837.0,0.0001708]
[1736076128442,0.6219947,97838.0,97837.0,0.0011708]
[1736076128649,0.6219947,97838.0,97837.0,0.0001708]
[1736076128941,0.6219947,97838.0,97837.0,0.0011708]
[1736076129152,0.6219947,97838.0,97837.0,0.0001708]
[1736076129512,0.6219947,97838.0,97837.0,0.03220841]
[1736076129718,0.6219947,97838.0,97837.0,0.0001708]
[1736076130644,0.6219947,97838.0,97837.0,0.0011708]
[1736076131065,0.6219947,97838.0,97837.0,0.0001708]
[1736076131480,0.6219947,97838.0,97837.0,0.0011708]
[1736076131636,0.6219947,97838.0,97837.0,0.0001708]
[1736076132018,0.6219947,97838.0,97837.0,0.0011708]
[1736076132268,0.6219947,97838.0,97837.0,0.0001708]
[1736076132628,0.6219947,97838.0,97837.0,0.0011708]
[1736076133579,0.6449947,97838.0,97837.0,0.0011708]
[1736076133827,0.6449947,97838.0,97837.0,0.0001708]
[1736076134239,0.6449947,97838.0,97837.0,0.0011708]
[1736076135439,0.6449947,97838.0,97837.0,0.0001708]
[1736076136028,0.74898102,97838.0,97837.0,0.0001708]
[1736076138734,0.74898102,97838.0,97837.0,0.0021708]
[1736076139836,0.74997569,97838.0,97837.0,0.0021708]
[1736076140575,0.74997569,97838.0,97837.0,0.0001708]
[1736076140779,0.74997569,97838.0,97837.0,0.0021708]
[1736076140956,0.74997569,97838.0,97837.0,0.0001708]
[1736076141488,0.75097569,97838.0,97837.0,0.0001708]
[1736076142013,0.74997569,97838.0,97837.0,0.0001708]
[1736076144822,0.75097569,97838.0,97837.0,0.0001708]
[1736076145441,0.74997569,97838.0,97837.0,0.0001708]